Workbook

Sheet Chart
B2: ='ALE11'!AJ181 -> NYY | C2: ='ALE11'!AK181 -> 0 | D2: ='ALE11'!AL181 -> 0.5987654321
B3: ='ALE11'!AJ182 -> TBR | C3: ='ALE11'!AK182 -> 6 | D3: ='ALE11'!AL182 -> 0.5617283951
B4: ='ALE11'!AJ183 -> BOS | C4: ='ALE11'!AK183 -> 7 | D4: ='ALE11'!AL183 -> 0.5555555556
B5: ='ALE11'!AJ184 -> TOR | C5: ='ALE11'!AK184 -> 16 | D5: ='ALE11'!AL184 -> 0.5
B6: ='ALE11'!AJ185 -> BAL | C6: ='ALE11'!AK185 -> 28 | D6: ='ALE11'!AL185 -> 0.4259259259
B11: MLB.mobi Scores
B14: PHP Results
B17: HTML Results
F38: Note: You must enable macros for this workbook to update correctly

Sheet ALE11
A1: ALE11 | B1: BAL | C1: W | D1: L | F1: BOS | G1: W | H1: L | J1: NYY | K1: W | L1: L | N1: TBR | O1: W | P1: L | R1: TOR | S1: W | T1: L | W1: =B1 -> BAL | X1: =F1 -> BOS | Y1: =J1 -> NYY | Z1: =N1 -> TBR | AA1: =R1 -> TOR | AC1: =W1 -> BAL | AD1: =X1 -> BOS | AE1: =Y1 -> NYY | AF1: =Z1 -> TBR | AG1: =AA1 -> TOR
A2: 2011-03-30 | C2: 0 | D2: 0 | G2: 0 | H2: 0 | K2: 0 | L2: 0 | O2: 0 | P2: 0 | S2: 0 | T2: 0 | W2: 0 | X2: 0 | Y2: 0 | Z2: 0 | AA2: 0 | AC2: 0 | AD2: 0 | AE2: 0 | AF2: 0 | AG2: 0
A3: 2011-03-31 | C3: =C2+IF(B3>0,B3,0) -> 0 | D3: =D2-IF(B3<0,B3,0) -> 0 | G3: =G2+IF(F3>0,F3,0) -> 0 | H3: =H2-IF(F3<0,F3,0) -> 0 | J3: 1 | K3: =K2+IF(J3>0,J3,0) -> 1 | L3: =L2-IF(J3<0,J3,0) -> 0 | O3: =O2+IF(N3>0,N3,0) -> 0 | P3: =P2-IF(N3<0,N3,0) -> 0 | S3: =S2+IF(R3>0,R3,0) -> 0 | T3: =T2-IF(R3<0,R3,0) -> 0 | W3: =C3-D3 -> 0 | X3: =G3-H3 -> 0 | Y3: =K3-L3 -> 1 | Z3: =O3-P3 -> 0 | AA3: =S3-T3 -> 0 | AC3: =(MAX($W3:$AA3)-W3)/2 -> 0.5 | AD3: =(MAX($W3:$AA3)-X3)/2 -> 0.5 | AE3: =(MAX($W3:$AA3)-Y3)/2 -> 0 | AF3: =(MAX($W3:$AA3)-Z3)/2 -> 0.5 | AG3: =(MAX($W3:$AA3)-AA3)/2 -> 0.5
A4: 2011-04-01 | B4: 1 | C4: 1 | D4: 0 | F4: -1 | G4: 0 | H4: 1 | K4: 1 | L4: 0 | N4: -1 | O4: 0 | P4: 1 | R4: 1 | S4: 1 | T4: 0 | W4: 1 | X4: -1 | Y4: 1 | Z4: -1 | AA4: 1 | AC4: 0 | AD4: 1 | AE4: 0 | AF4: 1 | AG4: 0
A5: 2011-04-02 | B5: 1 | C5: 2 | D5: 0 | F5: -1 | G5: 0 | H5: 2 | J5: 1 | K5: 2 | L5: 0 | N5: -1 | O5: 0 | P5: 2 | R5: 1 | S5: 2 | T5: 0 | W5: 2 | X5: -2 | Y5: 2 | Z5: -2 | AA5: 2 | AC5: 0 | AD5: 2 | AE5: 0 | AF5: 2 | AG5: 0
A6: 2011-04-03 | B6: 1 | C6: 3 | D6: 0 | F6: -1 | G6: 0 | H6: 3 | J6: -1 | K6: 2 | L6: 1 | N6: -1 | O6: 0 | P6: 3 | R6: -1 | S6: 2 | T6: 1 | W6: 3 | X6: -3 | Y6: 1 | Z6: -3 | AA6: 1 | AC6: 0 | AD6: 3 | AE6: 1 | AF6: 3 | AG6: 1
A7: 2011-04-04 | B7: 1 | C7: 4 | D7: 0 | G7: 0 | H7: 3 | J7: 1 | K7: 3 | L7: 1 | O7: 0 | P7: 3 | S7: 2 | T7: 1 | W7: 4 | X7: -3 | Y7: 2 | Z7: -3 | AA7: 1 | AC7: 0 | AD7: 3.5 | AE7: 1 | AF7: 3.5 | AG7: 1.5
A8: 2011-04-05 | C8: 4 | D8: 0 | F8: -1 | G8: 0 | H8: 4 | J8: -1 | K8: 3 | L8: 2 | N8: -1 | O8: 0 | P8: 4 | R8: 1 | S8: 3 | T8: 1 | W8: 4 | X8: -4 | Y8: 1 | Z8: -4 | AA8: 2 | AC8: 0 | AD8: 4 | AE8: 1.5 | AF8: 4 | AG8: 1
A9: 2011-04-06 | B9: -1 | C9: 4 | D9: 1 | F9: -1 | G9: 0 | H9: 5 | K9: 3 | L9: 2 | N9: -1 | O9: =O8+IF(N9>0,N9,0) -> 0 | P9: 5 | R9: 1 | S9: 4 | T9: 1 | W9: 3 | X9: -5 | Y9: 1 | Z9: -5 | AA9: 3 | AC9: 0 | AD9: 4 | AE9: 1 | AF9: 4 | AG9: 0
A10: 2011-04-07 | B10: 1 | C10: 5 | D10: 1 | F10: -1 | G10: 0 | H10: 6 | J10: 1 | K10: 4 | L10: 2 | N10: -1 | O10: 0 | P10: 6 | R10: -1 | S10: 4 | T10: 2 | W10: 4 | X10: -6 | Y10: 2 | Z10: -6 | AA10: 2 | AC10: 0 | AD10: 5 | AE10: 1 | AF10: 5 | AG10: 1
A11: 2011-04-08 | C11: 5 | D11: 1 | F11: 1 | G11: 1 | H11: 6 | J11: -1 | K11: 4 | L11: 3 | N11: 1 | O11: 1 | P11: 6 | R11: 1 | S11: 5 | T11: 2 | W11: 4 | X11: -5 | Y11: 1 | Z11: -5 | AA11: 3 | AC11: 0 | AD11: 4.5 | AE11: 1.5 | AF11: 4.5 | AG11: 0.5
A12: 2011-04-09 | B12: 0 | C12: 6 | D12: 2 | F12: -1 | G12: 1 | H12: 7 | J12: 1 | K12: 5 | L12: 3 | N12: -1 | O12: 1 | P12: 7 | R12: -1 | S12: 5 | T12: 3 | W12: 4 | X12: -6 | Y12: 2 | Z12: -6 | AA12: 2 | AC12: 0 | AD12: 5 | AE12: 1 | AF12: 5 | AG12: 1
A13: 2011-04-10 | B13: -1 | C13: 6 | D13: 3 | F13: 1 | G13: 2 | H13: 7 | J13: -1 | K13: 5 | L13: 4 | N13: -1 | O13: 1 | P13: 8 | R13: -1 | S13: 5 | T13: 4 | W13: 3 | X13: -5 | Y13: 1 | Z13: -7 | AA13: 1 | AC13: 0 | AD13: 4 | AE13: 1 | AF13: 5 | AG13: 1
A14: 2011-04-11 | C14: 6 | D14: 3 | F14: -1 | G14: 2 | H14: 8 | K14: 5 | L14: 4 | N14: 1 | O14: 2 | P14: 8 | R14: -1 | S14: 5 | T14: 5 | W14: 3 | X14: -6 | Y14: 1 | Z14: -6 | AA14: 0 | AC14: 0 | AD14: 4.5 | AE14: 1 | AF14: 4.5 | AG14: 1.5
A15: 2011-04-12 | C15: 6 | D15: 3 | F15: -1 | G15: 2 | H15: 9 | K15: 5 | L15: 4 | N15: 1 | O15: 3 | P15: 8 | R15: -1 | S15: 5 | T15: 6 | W15: 3 | X15: -7 | Y15: 1 | Z15: -5 | AA15: -1 | AC15: 0 | AD15: 5 | AE15: 1 | AF15: 4 | AG15: 2
A16: 2011-04-13 | B16: -1 | C16: 6 | D16: 4 | G16: 2 | H16: 9 | J16: 1 | K16: 6 | L16: 4 | O16: 3 | P16: 8 | R16: 1 | S16: 6 | T16: 6 | W16: 2 | X16: -7 | Y16: 2 | Z16: -5 | AA16: 0 | AC16: 0 | AD16: 4.5 | AE16: 0 | AF16: 3.5 | AG16: 1
A17: 2011-04-14 | B17: -1 | C17: 6 | D17: 5 | G17: 2 | H17: 9 | J17: 1 | K17: 7 | L17: 4 | N17: 1 | O17: 4 | P17: 8 | S17: 6 | T17: 6 | W17: 1 | X17: -7 | Y17: 3 | Z17: -4 | AA17: 0 | AC17: 1 | AD17: 5 | AE17: 0 | AF17: 3.5 | AG17: 1.5
A18: 2011-04-15 | B18: -1 | C18: 6 | D18: 6 | F18: -1 | G18: 2 | H18: 10 | J18: -1 | K18: 7 | L18: 5 | N18: 1 | O18: 5 | P18: 8 | R18: 1 | S18: 7 | T18: 6 | W18: 0 | X18: -8 | Y18: 2 | Z18: -3 | AA18: 1 | AC18: 1 | AD18: 5 | AE18: 0 | AF18: 2.5 | AG18: 0.5
A19: 2011-04-16 | B19: -1 | C19: 6 | D19: 7 | F19: 1 | G19: 3 | H19: 10 | J19: 1 | K19: 8 | L19: 5 | N19: 1 | O19: 6 | P19: 8 | R19: -1 | S19: 7 | T19: 7 | W19: -1 | X19: -7 | Y19: 3 | Z19: -2 | AA19: 0 | AC19: 2 | AD19: 5 | AE19: 0 | AF19: 2.5 | AG19: 1.5
A20: 2011-04-17 | B20: -1 | C20: 6 | D20: 8 | F20: 1 | G20: 4 | H20: 10 | J20: 1 | K20: 9 | L20: 5 | N20: -1 | O20: 6 | P20: 9 | R20: -1 | S20: 7 | T20: 8 | W20: -2 | X20: -6 | Y20: 4 | Z20: -3 | AA20: -1 | AC20: 3 | AD20: 5 | AE20: 0 | AF20: 3.5 | AG20: 2.5
A21: 2011-04-18 | B21: -1 | C21: 6 | D21: 9 | F21: 1 | G21: 5 | H21: 10 | K21: 9 | L21: 5 | N21: 1 | O21: 7 | P21: 9 | R21: -1 | S21: 7 | T21: 9 | W21: -3 | X21: -5 | Y21: 4 | Z21: -2 | AA21: -2 | AC21: 3.5 | AD21: 4.5 | AE21: 0 | AF21: 3 | AG21: 3
A22: 2011-04-19 | B22: 1 | C22: 7 | D22: 9 | F22: -1 | G22: 5 | H22: 11 | J22: -1 | K22: 9 | L22: 6 | N22: 1 | O22: 8 | P22: 9 | R22: 1 | S22: 8 | T22: 9 | W22: -2 | X22: -6 | Y22: 3 | Z22: -1 | AA22: -1 | AC22: 2.5 | AD22: 4.5 | AE22: 0 | AF22: 2 | AG22: 2
A23: 2011-04-20 | B23: 1 | C23: =C22+IF(B23>0,B23,0) -> 8 | D23: =D22-IF(B23<0,B23,0) -> 9 | F23: 1 | G23: 6 | H23: 11 | J23: 1 | K23: 10 | L23: 6 | N23: 1 | O23: 9 | P23: 9 | R23: -1 | S23: =S22+IF(R23>0,R23,0) -> 8 | T23: =T22-IF(R23<0,R23,0) -> 10 | W23: -1 | X23: -5 | Y23: 4 | Z23: 0 | AA23: -2 | AC23: 2.5 | AD23: 4.5 | AE23: 0 | AF23: 2 | AG23: 3
A24: 2011-04-21 | B24: -1 | C24: 8 | D24: 10 | F24: 1 | G24: 7 | H24: 11 | K24: 10 | L24: 6 | N24: -1 | O24: 9 | P24: 10 | S24: 8 | T24: 10 | W24: -2 | X24: -4 | Y24: 4 | Z24: -1 | AA24: -2 | AC24: 3 | AD24: 4 | AE24: 0 | AF24: 2.5 | AG24: 3
A25: 2011-04-22 | C25: 8 | D25: 10 | F25: 1 | G25: 8 | H25: 11 | K25: 10 | L25: 6 | N25: -1 | O25: 9 | P25: 11 | R25: 1 | S25: 9 | T25: 10 | W25: -2 | X25: -3 | Y25: 4 | Z25: -2 | AA25: -1 | AC25: 3 | AD25: 3.5 | AE25: 0 | AF25: 3 | AG25: 2.5
A26: 2011-04-23 | B26: -1 | C26: 8 | D26: 11 | F26: 1 | G26: 9 | H26: 11 | J26: 1 | K26: 11 | L26: 6 | N26: 1 | O26: 10 | P26: 11 | R26: -1 | S26: 9 | T26: 11 | W26: -3 | X26: -2 | Y26: 5 | Z26: -1 | AA26: -2 | AC26: 4 | AD26: 3.5 | AE26: 0 | AF26: 3 | AG26: 3.5
A27: 2011-04-24 | B27: -1 | C27: 8 | D27: 12 | F27: 1 | G27: 10 | H27: 11 | J27: 1 | K27: 12 | L27: 6 | N27: 1 | O27: 11 | P27: 11 | R27: -1 | S27: 9 | T27: 12 | W27: -4 | X27: -1 | Y27: 6 | Z27: 0 | AA27: -3 | AC27: 5 | AD27: 3.5 | AE27: 0 | AF27: 3 | AG27: 4.5
A28: 2011-04-25 | C28: 8 | D28: 12 | G28: 10 | H28: 11 | J28: -1 | K28: 12 | L28: 7 | O28: 11 | P28: 11 | R28: 1 | S28: 10 | T28: 12 | W28: -4 | X28: -1 | Y28: 5 | Z28: 0 | AA28: -2 | AC28: 4.5 | AD28: 3 | AE28: 0 | AF28: 2.5 | AG28: 3.5
A29: 2011-04-26 | B29: 1 | C29: 9 | D29: 12 | F29: -1 | G29: 10 | H29: 12 | J29: -1 | K29: 12 | L29: 8 | O29: 11 | P29: 11 | R29: 1 | S29: 11 | T29: 12 | W29: -3 | X29: -2 | Y29: 4 | Z29: 0 | AA29: -1 | AC29: 3.5 | AD29: 3 | AE29: 0 | AF29: 2 | AG29: 2.5
A30: 2011-04-27 | B30: 1 | C30: 10 | D30: 12 | F30: -1 | G30: 10 | H30: 13 | J30: 1 | K30: 13 | L30: 8 | N30: 1 | O30: 12 | P30: 11 | R30: -1 | S30: 11 | T30: 13 | W30: -2 | X30: -3 | Y30: 5 | Z30: 1 | AA30: -2 | AC30: 3.5 | AD30: 4 | AE30: 0 | AF30: 2 | AG30: 3.5
A31: 2011-04-28 | B31: -1 | C31: 10 | D31: 13 | F31: 1 | G31: 11 | H31: 13 | J31: 1 | K31: 14 | L31: 8 | N31: 2 | O31: 14 | P31: 11 | R31: 1 | S31: 12 | T31: 13 | W31: -3 | X31: -2 | Y31: 6 | Z31: 3 | AA31: -1 | AC31: 4.5 | AD31: 4 | AE31: 0 | AF31: 1.5 | AG31: 3.5
A32: 2011-04-29 | B32: 1 | C32: 11 | D32: 13 | F32: -1 | G32: 11 | H32: 14 | J32: -1 | K32: 14 | L32: 9 | N32: -1 | O32: 14 | P32: 12 | R32: 1 | S32: 13 | T32: 13 | W32: -2 | X32: -3 | Y32: 5 | Z32: 2 | AA32: 0 | AC32: 3.5 | AD32: 4 | AE32: 0 | AF32: 1.5 | AG32: 2.5
A33: 2011-04-30 | B33: 1 | C33: 12 | D33: 13 | F33: -1 | G33: 11 | H33: 15 | J33: 1 | K33: 15 | L33: 9 | N33: 1 | O33: 15 | P33: 12 | R33: -1 | S33: 13 | T33: 14 | W33: -1 | X33: -4 | Y33: 6 | Z33: 3 | AA33: -1 | AC33: 3.5 | AD33: 5 | AE33: 0 | AF33: 1.5 | AG33: 3.5
A34: 2011-05-01 | B34: 1 | C34: 13 | D34: 13 | F34: 1 | G34: 12 | H34: 15 | J34: 1 | K34: 16 | L34: 9 | N34: -1 | O34: 15 | P34: 13 | R34: -1 | S34: 13 | T34: 15 | W34: 0 | X34: -3 | Y34: 7 | Z34: 2 | AA34: -2 | AC34: 3.5 | AD34: 5 | AE34: 0 | AF34: 2.5 | AG34: 4.5
A35: 2011-05-02 | B35: -1 | C35: 13 | D35: 14 | F35: 1 | G35: 13 | H35: 15 | J35: 1 | K35: 17 | L35: 9 | O35: 15 | P35: 13 | S35: 13 | T35: 15 | W35: =C35-D35 -> -1 | X35: =G35-H35 -> -2 | Y35: =K35-L35 -> 8 | Z35: =O35-P35 -> 2 | AA35: =S35-T35 -> -2 | AC35: =(MAX($W35:$AA35)-W35)/2 -> 4.5 | AD35: =(MAX($W35:$AA35)-X35)/2 -> 5 | AE35: =(MAX($W35:$AA35)-Y35)/2 -> 0 | AF35: =(MAX($W35:$AA35)-Z35)/2 -> 3 | AG35: =(MAX($W35:$AA35)-AA35)/2 -> 5
A36: 2011-05-03 | B36: -1 | C36: 13 | D36: 15 | F36: 1 | G36: 14 | H36: 15 | J36: -1 | K36: 17 | L36: 10 | N36: 1 | O36: 16 | P36: 13 | R36: -1 | S36: 13 | T36: 16 | W36: -2 | X36: -1 | Y36: 7 | Z36: 3 | AA36: -3 | AC36: 4.5 | AD36: 4 | AE36: 0 | AF36: 2 | AG36: 5
A37: 2011-05-04 | B37: 1 | C37: 14 | D37: 15 | F37: -1 | G37: 14 | H37: 16 | J37: -1 | K37: 17 | L37: 11 | N37: -1 | O37: 16 | P37: 14 | R37: 1 | S37: 14 | T37: 16 | W37: -1 | X37: -2 | Y37: 6 | Z37: 2 | AA37: -2 | AC37: 3.5 | AD37: 4 | AE37: 0 | AF37: 2 | AG37: 4
A38: 2011-05-05 | B38: -1 | C38: 14 | D38: 16 | F38: -1 | G38: 14 | H38: 17 | J38: -1 | K38: 17 | L38: 12 | N38: 1 | O38: 17 | P38: 14 | R38: -1 | S38: 14 | T38: 17 | W38: -2 | X38: -3 | Y38: 5 | Z38: 3 | AA38: -3 | AC38: 3.5 | AD38: 4 | AE38: 0 | AF38: 1 | AG38: 4
A39: 2011-05-06 | B39: -1 | C39: =C38+IF(B39>0,B39,0) -> 14 | D39: =D38-IF(B39<0,B39,0) -> 17 | F39: -1 | G39: =G38+IF(F39>0,F39,0) -> 14 | H39: =H38-IF(F39<0,F39,0) -> 18 | J39: 1 | K39: =K38+IF(J39>0,J39,0) -> 18 | L39: =L38-IF(J39<0,J39,0) -> 12 | N39: 1 | O39: =O38+IF(N39>0,N39,0) -> 18 | P39: =P38-IF(N39<0,N39,0) -> 14 | R39: 1 | S39: 15 | T39: 17 | W39: -3 | X39: -4 | Y39: 6 | Z39: 4 | AA39: -2 | AC39: 4.5 | AD39: 5 | AE39: 0 | AF39: 1 | AG39: 4
A40: 2011-05-07 | B40: -1 | C40: 14 | D40: 18 | F40: 1 | G40: 15 | H40: 18 | J40: -1 | K40: 18 | L40: 13 | N40: 1 | O40: 19 | P40: 14 | R40: -1 | S40: 15 | T40: 18 | W40: -4 | X40: -3 | Y40: 5 | Z40: 5 | AA40: -3 | AC40: 4.5 | AD40: 4 | AE40: 0 | AF40: 0 | AG40: 4
A41: 2011-05-08 | B41: -1 | C41: 14 | D41: 19 | F41: 1 | G41: 16 | H41: 18 | J41: 1 | K41: 19 | L41: 13 | N41: 1 | O41: 20 | P41: 14 | R41: -1 | S41: 15 | T41: 19 | W41: -5 | X41: -2 | Y41: 6 | Z41: 6 | AA41: -4 | AC41: 5.5 | AD41: 4 | AE41: 0 | AF41: 0 | AG41: 5
A42: 2011-05-09 | C42: 14 | D42: 19 | F42: 1 | G42: 17 | H42: 18 | K42: 19 | L42: 13 | O42: 20 | P42: 14 | R42: -1 | S42: 15 | T42: 20 | W42: -5 | X42: -1 | Y42: 6 | Z42: 6 | AA42: -5 | AC42: 5.5 | AD42: 3.5 | AE42: 0 | AF42: 0 | AG42: 5.5
A43: 2011-05-10 | B43: 1 | C43: 15 | D43: 19 | F43: -1 | G43: =G42+IF(F43>0,F43,0) -> 17 | H43: =H42-IF(F43<0,F43,0) -> 19 | J43: 1 | K43: 20 | L43: 13 | N43: -1 | O43: 20 | P43: 15 | R43: 1 | S43: 16 | T43: 20 | W43: -4 | X43: -2 | Y43: 7 | Z43: 5 | AA43: -4 | AC43: 5.5 | AD43: 4.5 | AE43: 0 | AF43: 1 | AG43: 5.5 | AJ43: =AJ181 -> NYY | AK43: 0 | AL43: 0.5987654321
A44: 2011-05-11 | B44: 1 | C44: 16 | D44: 19 | F44: -1 | G44: 17 | H44: 20 | J44: -1 | K44: 20 | L44: 14 | N44: 1 | O44: 21 | P44: 15 | R44: 1 | S44: 17 | T44: 20 | W44: -3 | X44: -3 | Y44: 6 | Z44: 6 | AA44: -3 | AC44: 4.5 | AD44: 4.5 | AE44: 0 | AF44: 0 | AG44: 4.5 | AJ44: =AJ182 -> TBR | AK44: 6 | AL44: 0.5617283951
A45: 2011-05-12 | B45: 1 | C45: =C44+IF(B45>0,B45,0) -> 17 | D45: =D44-IF(B45<0,B45,0) -> 19 | G45: =G44+IF(F45>0,F45,0) -> 17 | H45: =H44-IF(F45<0,F45,0) -> 20 | J45: -1 | K45: =K44+IF(J45>0,J45,0) -> 20 | L45: =L44-IF(J45<0,J45,0) -> 15 | N45: 1 | O45: =O44+IF(N45>0,N45,0) -> 22 | P45: =P44-IF(N45<0,N45,0) -> 15 | S45: =S44+IF(R45>0,R45,0) -> 17 | T45: =T44-IF(R45<0,R45,0) -> 20 | W45: -2 | X45: -3 | Y45: 5 | Z45: 7 | AA45: -3 | AC45: 4.5 | AD45: 5 | AE45: 1 | AF45: 0 | AG45: 5 | AJ45: BOS | AK45: 7 | AL45: 0.5555555556
A46: 2011-05-13 | B46: -1 | C46: 17 | D46: 20 | F46: 1 | G46: 18 | H46: 20 | J46: -1 | K46: 20 | L46: 16 | N46: 1 | O46: 23 | P46: 15 | R46: 1 | S46: =S45+IF(R46>0,R46,0) -> 18 | T46: =T45-IF(R46<0,R46,0) -> 20 | W46: -3 | X46: -2 | Y46: 4 | Z46: 8 | AA46: -2 | AC46: 5.5 | AD46: 5 | AE46: 2 | AF46: 0 | AG46: 5 | AJ46: TOR | AK46: 16 | AL46: 0.5
A47: 2011-05-14 | B47: 1 | C47: 18 | D47: 20 | F47: 1 | G47: 19 | H47: 20 | J47: -1 | K47: 20 | L47: 17 | N47: -1 | O47: 23 | P47: 16 | R47: 1 | S47: 19 | T47: 20 | W47: -2 | X47: -1 | Y47: 3 | Z47: 7 | AA47: -1 | AC47: 4.5 | AD47: 4 | AE47: 2 | AF47: 0 | AG47: 4 | AJ47: BAL | AK47: 28 | AL47: 0.4259259259
A48: 2011-05-15 | B48: 1 | C48: 19 | D48: 20 | F48: 1 | G48: 20 | H48: 20 | J48: -1 | K48: 20 | L48: 18 | N48: -1 | O48: 23 | P48: 17 | R48: 1 | S48: 20 | T48: 20 | W48: -1 | X48: 0 | Y48: 2 | Z48: 6 | AA48: 0 | AC48: 3.5 | AD48: 3 | AE48: 2 | AF48: 0 | AG48: 3
A49: 2011-05-16 | B49: -1 | C49: 19 | D49: 21 | F49: 1 | G49: 21 | H49: 20 | J49: -1 | K49: 20 | L49: 19 | N49: 1 | O49: 24 | P49: 17 | R49: 1 | S49: 21 | T49: 20 | W49: -2 | X49: 1 | Y49: 1 | Z49: 7 | AA49: 1 | AC49: 4.5 | AD49: 3 | AE49: 3 | AF49: 0 | AG49: 3
A50: 2011-05-17 | C50: 19 | D50: 21 | G50: 21 | H50: 20 | J50: 1 | K50: 21 | L50: 19 | N50: -1 | O50: 24 | P50: 18 | S50: 21 | T50: 20 | W50: -2 | X50: 1 | Y50: 2 | Z50: 6 | AA50: 1 | AC50: 4 | AD50: 2.5 | AE50: 2 | AF50: 0 | AG50: 2.5
A51: 2011-05-18 | B51: -1 | C51: 19 | D51: 22 | F51: 1 | G51: 22 | H51: 20 | J51: 1 | K51: 22 | L51: 19 | N51: 1 | O51: 25 | P51: 18 | R51: -1 | S51: 21 | T51: 21 | W51: -3 | X51: 2 | Y51: 3 | Z51: 7 | AA51: 0 | AC51: 5 | AD51: 2.5 | AE51: 2 | AF51: 0 | AG51: 3.5
A52: 2011-05-19 | B52: -1 | C52: 19 | D52: 23 | F52: 1 | G52: 23 | H52: 20 | J52: 1 | K52: 23 | L52: 19 | N52: -1 | O52: 25 | P52: 19 | R52: 1 | S52: 22 | T52: 21 | W52: -4 | X52: 3 | Y52: 4 | Z52: 6 | AA52: 1 | AC52: 5 | AD52: 1.5 | AE52: 1 | AF52: 0 | AG52: 2.5
A53: 2011-05-20 | B53: -1 | C53: 19 | D53: 24 | F53: 1 | G53: 24 | H53: 20 | J53: -1 | K53: 23 | L53: 20 | N53: -1 | O53: 25 | P53: 20 | R53: -1 | S53: 22 | T53: 22 | W53: -5 | X53: 4 | Y53: 3 | Z53: 5 | AA53: 0 | AC53: 5 | AD53: 0.5 | AE53: 1 | AF53: 0 | AG53: 2.5
A54: 2011-05-21 | B54: 1 | C54: 20 | D54: 24 | F54: -1 | G54: 24 | H54: 21 | J54: 1 | K54: 24 | L54: 20 | N54: -1 | O54: 25 | P54: 21 | R54: 1 | S54: 23 | T54: 22 | W54: -4 | X54: 3 | Y54: 4 | Z54: 4 | AA54: 1 | AC54: 4 | AD54: 0.5 | AE54: 0 | AF54: 0 | AG54: 1.5
A55: 2011-05-22 | B55: 1 | C55: 21 | D55: 24 | F55: 1 | G55: 25 | H55: 21 | J55: 1 | K55: 25 | L55: 20 | N55: 1 | O55: 26 | P55: 21 | R55: -1 | S55: 23 | T55: 23 | W55: -3 | X55: 4 | Y55: 5 | Z55: 5 | AA55: 0 | AC55: 4 | AD55: 0.5 | AE55: 0 | AF55: 0 | AG55: 2.5
A56: 2011-05-23 | C56: =C55+IF(B56>0,B56,0) -> 21 | D56: =D55-IF(B56<0,B56,0) -> 24 | F56: -1 | G56: 25 | H56: 22 | J56: -1 | K56: 25 | L56: 21 | N56: -1 | O56: 26 | P56: 22 | R56: 1 | S56: 24 | T56: 23 | W56: -3 | X56: 3 | Y56: 4 | Z56: 4 | AA56: 1 | AC56: 3.5 | AD56: 0.5 | AE56: 0 | AF56: 0 | AG56: 1.5
A57: 2011-05-24 | B57: 1 | C57: 22 | D57: 24 | F57: 1 | G57: 26 | H57: 22 | J57: 1 | K57: 26 | L57: 21 | N57: -1 | O57: 26 | P57: 23 | R57: -1 | S57: 24 | T57: 24 | W57: -2 | X57: 4 | Y57: 5 | Z57: 3 | AA57: 0 | AC57: 3.5 | AD57: 0.5 | AE57: 0 | AF57: 1 | AG57: 2.5
A58: 2011-05-25 | B58: 1 | C58: 23 | D58: 24 | F58: 1 | G58: 27 | H58: 22 | J58: 1 | K58: 27 | L58: 21 | O58: 26 | P58: 23 | R58: -1 | S58: 24 | T58: 25 | W58: -1 | X58: 5 | Y58: 6 | Z58: 3 | AA58: -1 | AC58: 3.5 | AD58: 0.5 | AE58: 0 | AF58: 1.5 | AG58: 3.5
A59: 2011-05-26 | B59: 1 | C59: 24 | D59: 24 | F59: 1 | G59: 28 | H59: 22 | K59: 27 | L59: 21 | O59: 26 | P59: 23 | R59: -1 | S59: 24 | T59: 26 | W59: 0 | X59: 6 | Y59: 6 | Z59: 3 | AA59: -2 | AC59: 3 | AD59: 0 | AE59: 0 | AF59: 1.5 | AG59: 4
A60: 2011-05-27 | B60: -1 | C60: 24 | D60: 25 | F60: 1 | G60: 29 | H60: 22 | J60: -1 | K60: 27 | L60: 22 | N60: 1 | O60: 27 | P60: 23 | R60: 1 | S60: 25 | T60: 26 | W60: -1 | X60: 7 | Y60: 5 | Z60: 4 | AA60: -1 | AC60: 4 | AD60: 0 | AE60: 1 | AF60: 1.5 | AG60: 4
A61: 2011-05-28 | B61: -1 | C61: 24 | D61: 26 | G61: 29 | H61: 22 | J61: -1 | K61: 27 | L61: 23 | N61: -1 | O61: 27 | P61: 24 | R61: 1 | S61: 26 | T61: 26 | W61: -2 | X61: 7 | Y61: 4 | Z61: 3 | AA61: 0 | AC61: 4.5 | AD61: 0 | AE61: 1.5 | AF61: 2 | AG61: 3.5
A62: 2011-05-29 | B62: -1 | C62: 24 | D62: 27 | F62: 0 | G62: 30 | H62: 23 | J62: 1 | K62: 28 | L62: 23 | N62: 1 | O62: 28 | P62: 24 | R62: 1 | S62: 27 | T62: 26 | W62: -3 | X62: 7 | Y62: 5 | Z62: 4 | AA62: 1 | AC62: 5 | AD62: 0 | AE62: 1 | AF62: 1.5 | AG62: 3
A63: 2011-05-30 | B63: -1 | C63: 24 | D63: 28 | F63: -1 | G63: 30 | H63: 24 | J63: 1 | K63: 29 | L63: 23 | N63: -1 | O63: 28 | P63: 25 | R63: 1 | S63: 28 | T63: 26 | W63: -4 | X63: 6 | Y63: 6 | Z63: 3 | AA63: 2 | AC63: 5 | AD63: 0 | AE63: 0 | AF63: 1.5 | AG63: 2
A64: 2011-05-31 | B64: -1 | C64: 24 | D64: 29 | F64: -1 | G64: 30 | H64: 25 | J64: 1 | K64: 30 | L64: 23 | N64: 1 | O64: 29 | P64: 25 | R64: -1 | S64: 28 | T64: 27 | W64: -5 | X64: 5 | Y64: 7 | Z64: 4 | AA64: 1 | AC64: 6 | AD64: 1 | AE64: 0 | AF64: 1.5 | AG64: 3
A65: 2011-06-01 | B65: 1 | C65: 25 | D65: 29 | F65: -1 | G65: 30 | H65: 26 | J65: 1 | K65: 31 | L65: 23 | N65: -1 | O65: 29 | P65: 26 | R65: -1 | S65: 28 | T65: 28 | W65: -4 | X65: 4 | Y65: 8 | Z65: 3 | AA65: 0 | AC65: 6 | AD65: 2 | AE65: 0 | AF65: 2.5 | AG65: 4
A66: 2011-06-02 | C66: 25 | D66: 29 | G66: 30 | H66: 26 | K66: 31 | L66: 23 | N66: -1 | O66: 29 | P66: 27 | S66: 28 | T66: 28 | W66: -4 | X66: 4 | Y66: 8 | Z66: 2 | AA66: 0 | AC66: 6 | AD66: 2 | AE66: 0 | AF66: 3 | AG66: 4
A67: 2011-06-03 | B67: -1 | C67: 25 | D67: 30 | F67: 1 | G67: 31 | H67: 26 | J67: -1 | K67: 31 | L67: 24 | N67: -1 | O67: 29 | P67: 28 | R67: 1 | S67: 29 | T67: 28 | W67: =C67-D67 -> -5 | X67: =G67-H67 -> 5 | Y67: =K67-L67 -> 7 | Z67: =O67-P67 -> 1 | AA67: =S67-T67 -> 1 | AC67: =(MAX($W67:$AA67)-W67)/2 -> 6 | AD67: =(MAX($W67:$AA67)-X67)/2 -> 1 | AE67: =(MAX($W67:$AA67)-Y67)/2 -> 0 | AF67: =(MAX($W67:$AA67)-Z67)/2 -> 3 | AG67: =(MAX($W67:$AA67)-AA67)/2 -> 3
A68: 2011-06-04 | B68: 1 | C68: 26 | D68: 30 | F68: 1 | G68: 32 | H68: 26 | J68: 1 | K68: 32 | L68: 24 | N68: 1 | O68: 30 | P68: 28 | R68: -1 | S68: 29 | T68: 29 | W68: -4 | X68: 6 | Y68: 8 | Z68: 2 | AA68: 0 | AC68: 6 | AD68: 1 | AE68: 0 | AF68: 3 | AG68: 4
A69: 2011-06-05 | B69: -1 | C69: 26 | D69: 31 | F69: 1 | G69: 33 | H69: 26 | J69: 1 | K69: 33 | L69: 24 | N69: -1 | O69: 30 | P69: 29 | R69: 1 | S69: 30 | T69: 29 | W69: -5 | X69: 7 | Y69: 9 | Z69: 1 | AA69: 1 | AC69: 7 | AD69: 1 | AE69: 0 | AF69: 4 | AG69: 4
A70: 2011-06-06 | B70: 1 | C70: =C69+IF(B70>0,B70,0) -> 27 | D70: =D69-IF(B70<0,B70,0) -> 31 | G70: =G69+IF(F70>0,F70,0) -> 33 | H70: =H69-IF(F70<0,F70,0) -> 26 | J70: 0 | K70: =K69+IF(J70>0,J70,0) -> 33 | L70: =L69-IF(J70<0,J70,0) -> 24 | N70: 1 | O70: 31 | P70: 29 | R70: -1 | S70: 30 | T70: 30 | W70: -4 | X70: 7 | Y70: 9 | Z70: 2 | AA70: 0 | AC70: 6.5 | AD70: 1 | AE70: 0 | AF70: 3.5 | AG70: 4.5
A71: 2011-06-07 | B71: 1 | C71: =C70+IF(B71>0,B71,0) -> 28 | D71: =D70-IF(B71<0,B71,0) -> 31 | F71: 1 | G71: =G70+IF(F71>0,F71,0) -> 34 | H71: =H70-IF(F71<0,F71,0) -> 26 | J71: -1 | K71: =K70+IF(J71>0,J71,0) -> 33 | L71: =L70-IF(J71<0,J71,0) -> 25 | N71: 1 | O71: =O70+IF(N71>0,N71,0) -> 32 | P71: =P70-IF(N71<0,N71,0) -> 29 | R71: 1 | S71: 31 | T71: 30 | W71: -3 | X71: 8 | Y71: 8 | Z71: 3 | AA71: 1 | AC71: 5.5 | AD71: 0 | AE71: 0 | AF71: 2.5 | AG71: 3.5
A72: 2011-06-08 | B72: 1 | C72: =C71+IF(B72>0,B72,0) -> 29 | D72: =D71-IF(B72<0,B72,0) -> 31 | F72: 1 | G72: =G71+IF(F72>0,F72,0) -> 35 | H72: =H71-IF(F72<0,F72,0) -> 26 | J72: -1 | K72: =K71+IF(J72>0,J72,0) -> 33 | L72: =L71-IF(J72<0,J72,0) -> 26 | N72: 1 | O72: 33 | P72: 29 | R72: 1 | S72: 32 | T72: 30 | W72: -2 | X72: 9 | Y72: 7 | Z72: 4 | AA72: 2 | AC72: 5.5 | AD72: 0 | AE72: 1 | AF72: 2.5 | AG72: 3.5
A73: 2011-06-09 | C73: =C72+IF(B73>0,B73,0) -> 29 | D73: =D72-IF(B73<0,B73,0) -> 31 | F73: 1 | G73: =G72+IF(F73>0,F73,0) -> 36 | H73: =H72-IF(F73<0,F73,0) -> 26 | J73: -1 | K73: =K72+IF(J73>0,J73,0) -> 33 | L73: =L72-IF(J73<0,J73,0) -> 27 | O73: 33 | P73: 29 | R73: -1 | S73: 32 | T73: 31 | W73: -2 | X73: 10 | Y73: 6 | Z73: 4 | AA73: 1 | AC73: 6 | AD73: 0 | AE73: 2 | AF73: 3 | AG73: 4.5
A74: 2011-06-10 | B74: 1 | C74: 30 | D74: 31 | F74: 1 | G74: 37 | H74: 26 | J74: 1 | K74: =K73+IF(J74>0,J74,0) -> 34 | L74: =L73-IF(J74<0,J74,0) -> 27 | N74: -1 | O74: 33 | P74: 30 | R74: -1 | S74: 32 | T74: 32 | W74: -1 | X74: 11 | Y74: 7 | Z74: 3 | AA74: 0 | AC74: 6 | AD74: 0 | AE74: 2 | AF74: 4 | AG74: 5.5
A75: 2011-06-11 | B75: -1 | C75: 30 | D75: 32 | F75: 1 | G75: 38 | H75: 26 | J75: 1 | K75: =K74+IF(J75>0,J75,0) -> 35 | L75: =L74-IF(J75<0,J75,0) -> 27 | N75: 1 | O75: 34 | P75: 30 | R75: -1 | S75: 32 | T75: 33 | W75: -2 | X75: 12 | Y75: 8 | Z75: 4 | AA75: -1 | AC75: 7 | AD75: 0 | AE75: 2 | AF75: 4 | AG75: 6.5
A76: 2011-06-12 | B76: -1 | C76: 30 | D76: 33 | F76: 1 | G76: 39 | H76: 26 | J76: 1 | K76: =K75+IF(J76>0,J76,0) -> 36 | L76: =L75-IF(J76<0,J76,0) -> 27 | N76: 1 | O76: 35 | P76: 30 | R76: -1 | S76: 32 | T76: 34 | W76: -3 | X76: 13 | Y76: 9 | Z76: 5 | AA76: -2 | AC76: 8 | AD76: 0 | AE76: 2 | AF76: 4 | AG76: 7.5
A77: 2011-06-13 | C77: 30 | D77: 33 | G77: 39 | H77: 26 | J77: -1 | K77: =K76+IF(J77>0,J77,0) -> 36 | L77: =L76-IF(J77<0,J77,0) -> 28 | N77: -1 | O77: 35 | P77: 31 | S77: 32 | T77: 34 | W77: -3 | X77: 13 | Y77: 8 | Z77: 4 | AA77: -2 | AC77: 8 | AD77: 0 | AE77: 2.5 | AF77: 4.5 | AG77: 7.5
A78: 2011-06-14 | B78: -1 | C78: 30 | D78: 34 | F78: -1 | G78: 39 | H78: 27 | J78: 1 | K78: =K77+IF(J78>0,J78,0) -> 37 | L78: =L77-IF(J78<0,J78,0) -> 28 | N78: 1 | O78: 36 | P78: 31 | R78: 1 | S78: =S77+IF(R78>0,R78,0) -> 33 | T78: =T77-IF(R78<0,R78,0) -> 34 | W78: -4 | X78: 12 | Y78: 9 | Z78: 5 | AA78: -1 | AC78: 8 | AD78: 0 | AE78: 1.5 | AF78: 3.5 | AG78: 6.5
A79: 2011-06-15 | B79: -1 | C79: 30 | D79: 35 | F79: 1 | G79: 40 | H79: 27 | J79: 1 | K79: =K78+IF(J79>0,J79,0) -> 38 | L79: =L78-IF(J79<0,J79,0) -> 28 | N79: -1 | O79: 36 | P79: 32 | R79: 1 | S79: 34 | T79: 34 | W79: -5 | X79: 13 | Y79: 10 | Z79: 4 | AA79: 0 | AC79: 9 | AD79: 0 | AE79: 1.5 | AF79: 4.5 | AG79: 6.5
A80: 2011-06-16 | B80: 1 | C80: 31 | D80: 35 | F80: 1 | G80: 41 | H80: 27 | J80: 1 | K80: =K79+IF(J80>0,J80,0) -> 39 | L80: =L79-IF(J80<0,J80,0) -> 28 | N80: -1 | O80: 36 | P80: 33 | R80: -1 | S80: 34 | T80: 35 | W80: -4 | X80: 14 | Y80: 11 | Z80: 3 | AA80: -1 | AC80: 9 | AD80: 0 | AE80: 1.5 | AF80: 5.5 | AG80: 7.5
A81: 2011-06-17 | B81: -1 | C81: 31 | D81: 36 | F81: 1 | G81: 42 | H81: 27 | J81: -1 | K81: =K80+IF(J81>0,J81,0) -> 39 | L81: =L80-IF(J81<0,J81,0) -> 29 | N81: 1 | O81: 37 | P81: 33 | R81: 1 | S81: 35 | T81: 35 | W81: -5 | X81: 15 | Y81: 10 | Z81: 4 | AA81: 0 | AC81: 10 | AD81: 0 | AE81: 2.5 | AF81: 5.5 | AG81: 7.5
A82: 2011-06-18 | B82: -1 | C82: 31 | D82: 37 | F82: -1 | G82: 42 | H82: 28 | J82: 1 | K82: =K81+IF(J82>0,J82,0) -> 40 | L82: =L81-IF(J82<0,J82,0) -> 29 | N82: 1 | O82: 38 | P82: 33 | R82: 1 | S82: 36 | T82: 35 | W82: -6 | X82: 14 | Y82: 11 | Z82: 5 | AA82: 1 | AC82: 10 | AD82: 0 | AE82: 1.5 | AF82: 4.5 | AG82: 6.5
A83: 2011-06-19 | B83: 1 | C83: 32 | D83: 37 | F83: 1 | G83: 43 | H83: 28 | J83: 1 | K83: =K82+IF(J83>0,J83,0) -> 41 | L83: =L82-IF(J83<0,J83,0) -> 29 | N83: 1 | O83: 39 | P83: 33 | R83: -1 | S83: 36 | T83: 36 | W83: -5 | X83: 15 | Y83: 12 | Z83: 6 | AA83: 0 | AC83: 10 | AD83: 0 | AE83: 1.5 | AF83: 4.5 | AG83: 7.5
A84: 2011-06-20 | B84: 1 | C84: 33 | D84: 37 | F84: 1 | G84: 44 | H84: 28 | J84: 1 | K84: =K83+IF(J84>0,J84,0) -> 42 | L84: =L83-IF(J84<0,J84,0) -> 29 | N84: 1 | O84: 40 | P84: 33 | R84: -1 | S84: 36 | T84: 37 | W84: -4 | X84: 16 | Y84: 13 | Z84: 7 | AA84: -1 | AC84: 10 | AD84: 0 | AE84: 1.5 | AF84: 4.5 | AG84: 8.5
A85: 2011-06-21 | B85: -1 | C85: 33 | D85: 38 | F85: -1 | G85: 44 | H85: 29 | K85: =K84+IF(J85>0,J85,0) -> 42 | L85: =L84-IF(J85<0,J85,0) -> 29 | N85: -1 | O85: 40 | P85: 34 | R85: -1 | S85: 36 | T85: 38 | W85: -5 | X85: 15 | Y85: 13 | Z85: 6 | AA85: -2 | AC85: 10 | AD85: 0 | AE85: 1 | AF85: 4.5 | AG85: 8.5
A86: 2011-06-22 | B86: -1 | C86: 33 | D86: 39 | F86: -1 | G86: =G85+IF(F86>0,F86,0) -> 44 | H86: =H85-IF(F86<0,F86,0) -> 30 | J86: 0 | K86: 43 | L86: 30 | N86: 1 | O86: 41 | P86: 34 | R86: -1 | S86: 36 | T86: 39 | W86: -6 | X86: 14 | Y86: 13 | Z86: 7 | AA86: -3 | AC86: 10 | AD86: 0 | AE86: 0.5 | AF86: 3.5 | AG86: 8.5
A87: 2011-06-23 | C87: 33 | D87: 39 | G87: 44 | H87: 30 | K87: =K86+IF(J87>0,J87,0) -> 43 | L87: =L86-IF(J87<0,J87,0) -> 30 | O87: 41 | P87: 34 | S87: 36 | T87: 39 | W87: -6 | X87: 14 | Y87: 13 | Z87: 7 | AA87: -3 | AC87: 10 | AD87: 0 | AE87: 0.5 | AF87: 3.5 | AG87: 8.5
A88: 2011-06-24 | B88: 1 | C88: 34 | D88: 39 | F88: -1 | G88: 44 | H88: 31 | J88: -1 | K88: 43 | L88: 31 | N88: 1 | O88: 42 | P88: 34 | R88: 1 | S88: =S87+IF(R88>0,R88,0) -> 37 | T88: =T87-IF(R88<0,R88,0) -> 39 | W88: -5 | X88: 13 | Y88: 12 | Z88: 8 | AA88: -2 | AC88: 9 | AD88: 0 | AE88: 0.5 | AF88: 2.5 | AG88: 7.5
A89: 2011-06-25 | B89: -1 | C89: 34 | D89: 40 | F89: -1 | G89: 44 | H89: 32 | J89: 1 | K89: 44 | L89: 31 | N89: 1 | O89: 43 | P89: 34 | R89: 1 | S89: 38 | T89: 39 | W89: -6 | X89: 12 | Y89: 13 | Z89: 9 | AA89: -1 | AC89: 9.5 | AD89: 0.5 | AE89: 0 | AF89: 2 | AG89: 7
A90: 2011-06-26 | B90: 1 | C90: 35 | D90: 40 | F90: 1 | G90: 45 | H90: 32 | J90: 1 | K90: 45 | L90: 31 | N90: 1 | O90: 44 | P90: 34 | R90: 1 | S90: 39 | T90: 39 | W90: -5 | X90: 13 | Y90: 14 | Z90: 10 | AA90: 0 | AC90: 9.5 | AD90: 0.5 | AE90: 0 | AF90: 2 | AG90: 7
A91: 2011-06-27 | C91: 35 | D91: 40 | G91: 45 | H91: 32 | K91: 45 | L91: 31 | N91: -1 | O91: 44 | P91: 35 | R91: -1 | S91: 39 | T91: 40 | W91: -5 | X91: 13 | Y91: 14 | Z91: 9 | AA91: -1 | AC91: 9.5 | AD91: 0.5 | AE91: 0 | AF91: 2.5 | AG91: 7.5
A92: 2011-06-28 | B92: -1 | C92: 35 | D92: 41 | F92: -1 | G92: 45 | H92: 33 | J92: 1 | K92: 46 | L92: 31 | N92: 1 | O92: 45 | P92: 35 | R92: -1 | S92: 39 | T92: 41 | W92: -6 | X92: 12 | Y92: 15 | Z92: 10 | AA92: -2 | AC92: 10.5 | AD92: 1.5 | AE92: 0 | AF92: 2.5 | AG92: 8.5
A93: 2011-06-29 | B93: -1 | C93: 35 | D93: 42 | F93: -1 | G93: 45 | H93: 34 | J93: 1 | K93: 47 | L93: 31 | N93: -1 | O93: 45 | P93: 36 | R93: 1 | S93: 40 | T93: 41 | W93: -7 | X93: 11 | Y93: 16 | Z93: 9 | AA93: -1 | AC93: 11.5 | AD93: 2.5 | AE93: 0 | AF93: 3.5 | AG93: 8.5
A94: 2011-06-30 | B94: -1 | C94: 35 | D94: 43 | F94: 1 | G94: 46 | H94: 34 | J94: 1 | K94: 48 | L94: 31 | O94: 45 | P94: 36 | R94: -1 | S94: 40 | T94: 42 | W94: -8 | X94: 12 | Y94: 17 | Z94: 9 | AA94: -2 | AC94: 12.5 | AD94: 2.5 | AE94: 0 | AF94: 4 | AG94: 9.5
A95: 2011-07-01 | B95: -1 | C95: 35 | D95: 44 | F95: 1 | G95: 47 | H95: 34 | J95: 1 | K95: 49 | L95: 31 | N95: -1 | O95: 45 | P95: 37 | R95: -1 | S95: 40 | T95: 43 | W95: -9 | X95: 13 | Y95: 18 | Z95: 8 | AA95: -3 | AC95: 13.5 | AD95: 2.5 | AE95: 0 | AF95: 5 | AG95: 10.5
A96: 2011-07-02 | B96: -1 | C96: 35 | D96: 45 | F96: 1 | G96: 48 | H96: 34 | J96: 1 | K96: 50 | L96: 31 | N96: 1 | O96: 46 | P96: 37 | R96: -1 | S96: =S95+IF(R96>0,R96,0) -> 40 | T96: =T95-IF(R96<0,R96,0) -> 44 | W96: -10 | X96: 14 | Y96: 19 | Z96: 9 | AA96: -4 | AC96: 14.5 | AD96: 2.5 | AE96: 0 | AF96: 5 | AG96: 11.5
A97: 2011-07-03 | B97: 1 | C97: 36 | D97: 45 | F97: 1 | G97: 49 | H97: 34 | J97: -1 | K97: 50 | L97: 32 | N97: 1 | O97: 47 | P97: 37 | R97: 1 | S97: 41 | T97: 44 | W97: -9 | X97: 15 | Y97: 18 | Z97: 10 | AA97: -3 | AC97: 13.5 | AD97: 1.5 | AE97: 0 | AF97: 4 | AG97: 10.5
A98: 2011-07-04 | B98: -1 | C98: 36 | D98: 46 | F98: -1 | G98: 49 | H98: 35 | J98: -1 | K98: 50 | L98: 33 | N98: -1 | O98: 47 | P98: 38 | R98: 1 | S98: 42 | T98: 44 | W98: -10 | X98: 14 | Y98: 17 | Z98: 9 | AA98: -2 | AC98: 13.5 | AD98: 1.5 | AE98: 0 | AF98: 4 | AG98: 9.5
A99: 2011-07-05 | B99: -1 | C99: 36 | D99: 47 | F99: 1 | G99: 50 | H99: 35 | J99: 1 | K99: 51 | L99: 33 | N99: -1 | O99: 47 | P99: 39 | R99: -1 | S99: 42 | T99: 45 | W99: =C99-D99 -> -11 | X99: =G99-H99 -> 15 | Y99: =K99-L99 -> 18 | Z99: =O99-P99 -> 8 | AA99: =S99-T99 -> -3 | AC99: =(MAX($W99:$AA99)-W99)/2 -> 14.5 | AD99: =(MAX($W99:$AA99)-X99)/2 -> 1.5 | AE99: =(MAX($W99:$AA99)-Y99)/2 -> 0 | AF99: =(MAX($W99:$AA99)-Z99)/2 -> 5 | AG99: =(MAX($W99:$AA99)-AA99)/2 -> 10.5
A100: 2011-07-06 | B100: -1 | C100: =C99+IF(B100>0,B100,0) -> 36 | D100: =D99-IF(B100<0,B100,0) -> 48 | F100: 1 | G100: 51 | H100: 35 | J100: -1 | K100: 51 | L100: 34 | N100: 1 | O100: 48 | P100: 39 | R100: -1 | S100: 42 | T100: 46 | W100: -12 | X100: 16 | Y100: 17 | Z100: 9 | AA100: -4 | AC100: 14.5 | AD100: 0.5 | AE100: 0 | AF100: 4 | AG100: 10.5
A101: 2011-07-07 | B101: -1 | C101: 36 | D101: 49 | F101: 1 | G101: 52 | H101: 35 | J101: -1 | K101: 51 | L101: 35 | N101: 1 | O101: 49 | P101: 39 | R101: -1 | S101: 42 | T101: 47 | W101: -13 | X101: 17 | Y101: 16 | Z101: 10 | AA101: -5 | AC101: 15 | AD101: 0 | AE101: 0.5 | AF101: 3.5 | AG101: 11
A102: 2011-07-08 | B102: -1 | C102: 36 | D102: 50 | F102: 1 | G102: 53 | H102: 35 | K102: 51 | L102: 35 | O102: 49 | P102: 39 | R102: 1 | S102: 43 | T102: 47 | W102: -14 | X102: 18 | Y102: 16 | Z102: 10 | AA102: -4 | AC102: 16 | AD102: 0 | AE102: 1 | AF102: 4 | AG102: 11
A103: 2011-07-09 | B103: -1 | C103: =C102+IF(B103>0,B103,0) -> 36 | D103: =D102-IF(B103<0,B103,0) -> 51 | F103: 1 | G103: =G102+IF(F103>0,F103,0) -> 54 | H103: =H102-IF(F103<0,F103,0) -> 35 | J103: 1 | K103: =K102+IF(J103>0,J103,0) -> 52 | L103: =L102-IF(J103<0,J103,0) -> 35 | N103: -1 | O103: =O102+IF(N103>0,N103,0) -> 49 | P103: =P102-IF(N103<0,N103,0) -> 40 | R103: 1 | S103: 44 | T103: 47 | W103: -15 | X103: 19 | Y103: 17 | Z103: 9 | AA103: -3 | AC103: 17 | AD103: 0 | AE103: 1 | AF103: 5 | AG103: 11
A104: 2011-07-10 | B104: -1 | C104: 36 | D104: 52 | F104: 1 | G104: 55 | H104: 35 | J104: 1 | K104: 53 | L104: 35 | N104: -1 | O104: 49 | P104: 41 | R104: 1 | S104: 45 | T104: 47 | W104: -16 | X104: 20 | Y104: 18 | Z104: 8 | AA104: -2 | AC104: 18 | AD104: 0 | AE104: 1 | AF104: 6 | AG104: 11
A105: 2011-07-11 | C105: 36 | D105: 52 | G105: 55 | H105: 35 | K105: 53 | L105: 35 | O105: 49 | P105: 41 | S105: 45 | T105: 47 | W105: -16 | X105: 20 | Y105: 18 | Z105: 8 | AA105: -2 | AC105: 18 | AD105: 0 | AE105: 1 | AF105: 6 | AG105: 11
A106: 2011-07-12 | C106: 36 | D106: 52 | G106: 55 | H106: 35 | K106: 53 | L106: 35 | O106: 49 | P106: 41 | S106: 45 | T106: 47 | W106: -16 | X106: 20 | Y106: 18 | Z106: 8 | AA106: -2 | AC106: 18 | AD106: 0 | AE106: 1 | AF106: 6 | AG106: 11
A107: 2011-07-13 | C107: 36 | D107: 52 | G107: 55 | H107: 35 | K107: 53 | L107: 35 | O107: 49 | P107: 41 | S107: 45 | T107: 47 | W107: -16 | X107: 20 | Y107: 18 | Z107: 8 | AA107: -2 | AC107: 18 | AD107: 0 | AE107: 1 | AF107: 6 | AG107: 11
A108: 2011-07-14 | B108: -1 | C108: 36 | D108: 53 | G108: 55 | H108: 35 | J108: -1 | K108: 53 | L108: 36 | O108: 49 | P108: 41 | R108: 1 | S108: 46 | T108: 47 | W108: -17 | X108: 20 | Y108: 17 | Z108: 8 | AA108: -1 | AC108: 18.5 | AD108: 0 | AE108: 1.5 | AF108: 6 | AG108: 10.5
A109: 2011-07-15 | B109: -1 | C109: 36 | D109: 54 | F109: -1 | G109: 55 | H109: 36 | J109: -1 | K109: 53 | L109: 37 | N109: 1 | O109: 50 | P109: 41 | R109: 1 | S109: 47 | T109: 47 | W109: -18 | X109: 19 | Y109: 16 | Z109: 9 | AA109: 0 | AC109: 18.5 | AD109: 0 | AE109: 1.5 | AF109: 5 | AG109: 9.5
A110: 2011-07-16 | B110: 1 | C110: 37 | D110: 54 | F110: 1 | G110: 56 | H110: 36 | J110: 1 | K110: 54 | L110: 37 | N110: -1 | O110: 50 | P110: 42 | R110: -1 | S110: =S109+IF(R110>0,R110,0) -> 47 | T110: =T109-IF(R110<0,R110,0) -> 48 | W110: -17 | X110: 20 | Y110: 17 | Z110: 8 | AA110: -1 | AC110: 18.5 | AD110: 0 | AE110: 1.5 | AF110: 6 | AG110: 10.5
A111: 2011-07-17 | B111: 1 | C111: 38 | D111: 54 | F111: 1 | G111: 57 | H111: 36 | J111: 1 | K111: 55 | L111: 37 | N111: -1 | O111: 50 | P111: 43 | R111: -1 | S111: 47 | T111: 49 | W111: -16 | X111: 21 | Y111: 18 | Z111: 7 | AA111: -2 | AC111: 18.5 | AD111: 0 | AE111: 1.5 | AF111: 7 | AG111: 11.5
A112: 2011-07-18 | B112: -1 | C112: 38 | D112: 55 | F112: 1 | G112: 58 | H112: 36 | J112: 1 | K112: 56 | L112: 37 | N112: -1 | O112: 50 | P112: 44 | S112: 47 | T112: 49 | W112: -17 | X112: 22 | Y112: 19 | Z112: 6 | AA112: -2 | AC112: 19.5 | AD112: 0 | AE112: 1.5 | AF112: 8 | AG112: 12
A113: 2011-07-19 | B113: 1 | C113: 39 | D113: 55 | F113: -1 | G113: 58 | H113: 37 | J113: -1 | K113: 56 | L113: 38 | N113: 1 | O113: 51 | P113: 44 | R113: 1 | S113: 48 | T113: 49 | W113: -16 | X113: 21 | Y113: 18 | Z113: 7 | AA113: -1 | AC113: 18.5 | AD113: 0 | AE113: 1.5 | AF113: 7 | AG113: 11
A114: 2011-07-20 | B114: -1 | C114: 39 | D114: 56 | F114: 1 | G114: 59 | H114: 37 | J114: 1 | K114: 57 | L114: 38 | N114: -1 | O114: 51 | P114: 45 | R114: 1 | S114: 49 | T114: 49 | W114: -17 | X114: 22 | Y114: 19 | Z114: 6 | AA114: 0 | AC114: 19.5 | AD114: 0 | AE114: 1.5 | AF114: 8 | AG114: 11
A115: 2011-07-21 | C115: 39 | D115: 56 | G115: 59 | H115: 37 | J115: -1 | K115: 57 | L115: 39 | N115: 1 | O115: 52 | P115: 45 | R115: 1 | S115: 50 | T115: 49 | W115: -17 | X115: 22 | Y115: 18 | Z115: 7 | AA115: 1 | AC115: 19.5 | AD115: 0 | AE115: 2 | AF115: 7.5 | AG115: 10.5
A116: 2011-07-22 | B116: -1 | C116: 39 | D116: 57 | F116: 1 | G116: 60 | H116: 37 | J116: 1 | K116: 58 | L116: 39 | N116: -1 | O116: 52 | P116: 46 | R116: -1 | S116: 50 | T116: 50 | W116: -18 | X116: 23 | Y116: 19 | Z116: 6 | AA116: 0 | AC116: 20.5 | AD116: 0 | AE116: 2 | AF116: 8.5 | AG116: 11.5
A117: 2011-07-23 | B117: 1 | C117: 40 | D117: 57 | F117: 1 | G117: 61 | H117: 37 | J117: -1 | K117: 58 | L117: 40 | N117: -1 | O117: 52 | P117: 47 | R117: -1 | S117: 50 | T117: 51 | W117: -17 | X117: 24 | Y117: 18 | Z117: 5 | AA117: -1 | AC117: 20.5 | AD117: 0 | AE117: 3 | AF117: 9.5 | AG117: 12.5
A118: 2011-07-24 | B118: -1 | C118: 40 | D118: 58 | F118: 1 | G118: 62 | H118: 37 | J118: 1 | K118: 59 | L118: 40 | N118: 1 | O118: 53 | P118: 47 | R118: 1 | S118: 51 | T118: 51 | W118: -18 | X118: 25 | Y118: 19 | Z118: 6 | AA118: 0 | AC118: 21.5 | AD118: 0 | AE118: 3 | AF118: 9.5 | AG118: 12.5
A119: 2011-07-25 | C119: 40 | D119: 58 | F119: -1 | G119: 62 | H119: 38 | J119: 1 | K119: 60 | L119: 40 | N119: -1 | O119: 53 | P119: 48 | S119: 51 | T119: 51 | W119: -18 | X119: 24 | Y119: 20 | Z119: 5 | AA119: 0 | AC119: 21 | AD119: 0 | AE119: 2 | AF119: 9.5 | AG119: 12
A120: 2011-07-26 | B120: 1 | C120: 41 | D120: 58 | F120: 1 | G120: 63 | H120: 38 | J120: 1 | K120: 61 | L120: 40 | N120: -1 | O120: 53 | P120: 49 | R120: -1 | S120: 51 | T120: 52 | W120: -17 | X120: 25 | Y120: 21 | Z120: 4 | AA120: -1 | AC120: 21 | AD120: 0 | AE120: 2 | AF120: 10.5 | AG120: 13
A121: 2011-07-27 | B121: -1 | C121: 41 | D121: 59 | F121: 1 | G121: 64 | H121: 38 | J121: -1 | K121: 61 | L121: 41 | N121: -1 | O121: 53 | P121: 50 | R121: 1 | S121: 52 | T121: 52 | W121: -18 | X121: 26 | Y121: 20 | Z121: 3 | AA121: 0 | AC121: 22 | AD121: 0 | AE121: 3 | AF121: 11.5 | AG121: 13
A122: 2011-07-28 | B122: -1 | C122: 41 | D122: 60 | F122: -1 | G122: 64 | H122: 39 | K122: 61 | L122: 41 | N122: 1 | O122: 54 | P122: 50 | R122: 1 | S122: 53 | T122: 52 | W122: -19 | X122: 25 | Y122: 20 | Z122: 4 | AA122: 1 | AC122: 22 | AD122: 0 | AE122: 2.5 | AF122: 10.5 | AG122: 12
A123: 2011-07-29 | B123: 1 | C123: 42 | D123: 60 | F123: -1 | G123: 64 | H123: 40 | J123: -1 | K123: 61 | L123: 42 | N123: 1 | O123: 55 | P123: 50 | R123: 1 | S123: 54 | T123: 52 | W123: -18 | X123: 24 | Y123: 19 | Z123: 5 | AA123: 2 | AC123: 21 | AD123: 0 | AE123: 2.5 | AF123: 9.5 | AG123: 11
A124: 2011-07-30 | B124: -2 | C124: 42 | D124: 62 | F124: 1 | G124: 65 | H124: 40 | J124: 2 | K124: 63 | L124: 42 | N124: -1 | O124: 55 | P124: 51 | R124: -1 | S124: 54 | T124: 53 | W124: -20 | X124: 25 | Y124: 21 | Z124: 4 | AA124: 1 | AC124: 22.5 | AD124: 0 | AE124: 2 | AF124: 10.5 | AG124: 12
A125: 2011-07-31 | B125: -1 | C125: 42 | D125: 63 | F125: 1 | G125: 66 | H125: 40 | J125: 1 | K125: 64 | L125: 42 | N125: 1 | O125: 56 | P125: 51 | R125: 1 | S125: 55 | T125: 53 | W125: -21 | X125: 26 | Y125: 22 | Z125: 5 | AA125: 2 | AC125: 23.5 | AD125: 0 | AE125: 2 | AF125: 10.5 | AG125: 12
A126: 2011-08-01 | C126: 42 | D126: 63 | F126: -1 | G126: 66 | H126: 41 | J126: 1 | K126: 65 | L126: 42 | O126: 56 | P126: 51 | S126: 55 | T126: 53 | W126: -21 | X126: 25 | Y126: 23 | Z126: 5 | AA126: 2 | AC126: 23 | AD126: 0 | AE126: 1 | AF126: 10 | AG126: 11.5
A127: 2011-08-02 | B127: 1 | C127: 43 | D127: 63 | F127: 1 | G127: 67 | H127: 41 | J127: 1 | K127: 66 | L127: 42 | N127: -1 | O127: 56 | P127: 52 | R127: 1 | S127: 56 | T127: 53 | W127: -20 | X127: 26 | Y127: 24 | Z127: 4 | AA127: 3 | AC127: 23 | AD127: 0 | AE127: 1 | AF127: 11 | AG127: 11.5
A128: 2011-08-03 | B128: -1 | C128: 43 | D128: 64 | F128: 1 | G128: 68 | H128: 41 | J128: 1 | K128: 67 | L128: 42 | N128: 1 | O128: 57 | P128: 52 | R128: -1 | S128: 56 | T128: 54 | W128: -21 | X128: 27 | Y128: 25 | Z128: 5 | AA128: 2 | AC128: 24 | AD128: 0 | AE128: 1 | AF128: 11 | AG128: 12.5
A129: 2011-08-04 | B129: -1 | C129: 43 | D129: 65 | F129: -1 | G129: 68 | H129: 42 | J129: 1 | K129: 68 | L129: 42 | N129: 1 | O129: 58 | P129: 52 | R129: -1 | S129: 56 | T129: 55 | W129: -22 | X129: 26 | Y129: 26 | Z129: 6 | AA129: 1 | AC129: 24 | AD129: 0 | AE129: 0 | AF129: 10 | AG129: 12.5
A130: 2011-08-05 | B130: -1 | C130: 43 | D130: 66 | F130: -1 | G130: 68 | H130: 43 | J130: 1 | K130: 69 | L130: 42 | N130: 1 | O130: 59 | P130: 52 | R130: 1 | S130: 57 | T130: 55 | W130: -23 | X130: 25 | Y130: 27 | Z130: 7 | AA130: 2 | AC130: 25 | AD130: 1 | AE130: 0 | AF130: 10 | AG130: 12.5
A131: 2011-08-06 | B131: 1 | C131: 44 | D131: 66 | F131: 1 | G131: 69 | H131: 43 | J131: -1 | K131: 69 | L131: 43 | N131: -1 | O131: 59 | P131: 53 | R131: -1 | S131: 57 | T131: 56 | W131: =C131-D131 -> -22 | X131: =G131-H131 -> 26 | Y131: =K131-L131 -> 26 | Z131: =O131-P131 -> 6 | AA131: =S131-T131 -> 1 | AC131: =(MAX($W131:$AA131)-W131)/2 -> 24 | AD131: =(MAX($W131:$AA131)-X131)/2 -> 0 | AE131: =(MAX($W131:$AA131)-Y131)/2 -> 0 | AF131: =(MAX($W131:$AA131)-Z131)/2 -> 10 | AG131: =(MAX($W131:$AA131)-AA131)/2 -> 12.5
A132: 2011-08-07 | B132: -1 | C132: 44 | D132: 67 | F132: 1 | G132: 70 | H132: 43 | J132: -1 | K132: 69 | L132: 44 | N132: -1 | O132: 59 | P132: 54 | R132: 1 | S132: 58 | T132: 56 | W132: -23 | X132: 27 | Y132: 25 | Z132: 5 | AA132: 2 | AC132: 25 | AD132: 0 | AE132: 1 | AF132: 11 | AG132: 12.5
A133: 2011-08-08 | B133: -1 | C133: 44 | D133: 68 | F133: 1 | G133: 71 | H133: 43 | K133: 69 | L133: 44 | N133: 1 | O133: 60 | P133: 54 | S133: 58 | T133: 56 | W133: -24 | X133: 28 | Y133: 25 | Z133: 6 | AA133: 2 | AC133: 26 | AD133: 0 | AE133: 1.5 | AF133: 11 | AG133: 13
A134: 2011-08-09 | B134: -1 | C134: 44 | D134: 69 | F134: 1 | G134: 72 | H134: 43 | J134: -1 | K134: 69 | L134: 45 | N134: 1 | O134: 61 | P134: 54 | R134: -1 | S134: 58 | T134: 57 | W134: -25 | X134: 29 | Y134: 24 | Z134: 7 | AA134: 1 | AC134: 27 | AD134: 0 | AE134: 2.5 | AF134: 11 | AG134: 14
A135: 2011-08-10 | B135: 1 | C135: =C134+IF(B135>0,B135,0) -> 45 | D135: =D134-IF(B135<0,B135,0) -> 69 | F135: -1 | G135: =G134+IF(F135>0,F135,0) -> 72 | H135: =H134-IF(F135<0,F135,0) -> 44 | J135: 1 | K135: =K134+IF(J135>0,J135,0) -> 70 | L135: =L134-IF(J135<0,J135,0) -> 45 | N135: 1 | O135: =O134+IF(N135>0,N135,0) -> 62 | P135: =P134-IF(N135<0,N135,0) -> 54 | R135: 1 | S135: 59 | T135: 57 | W135: -24 | X135: 28 | Y135: 25 | Z135: 8 | AA135: 2 | AC135: 26 | AD135: 0 | AE135: 1.5 | AF135: 10 | AG135: 13
A136: 2011-08-11 | B136: -1 | C136: 45 | D136: 70 | G136: 72 | H136: 44 | J136: 1 | K136: 71 | L136: 45 | N136: 1 | O136: 63 | P136: 54 | R136: -1 | S136: 59 | T136: 58 | W136: -25 | X136: 28 | Y136: 26 | Z136: 9 | AA136: 1 | AC136: 26.5 | AD136: 0 | AE136: 1 | AF136: 9.5 | AG136: 13.5
A137: 2011-08-12 | B137: -1 | C137: 45 | D137: 71 | F137: 1 | G137: 73 | H137: 44 | J137: -1 | K137: 71 | L137: 46 | N137: 1 | O137: 64 | P137: 54 | R137: -1 | S137: 59 | T137: 59 | W137: -26 | X137: 29 | Y137: 25 | Z137: 10 | AA137: 0 | AC137: 27.5 | AD137: 0 | AE137: 2 | AF137: 9.5 | AG137: 14.5
A138: 2011-08-13 | B138: -1 | C138: 45 | D138: 72 | F138: -1 | G138: 73 | H138: 45 | J138: 1 | K138: 72 | L138: 46 | N138: -1 | O138: 64 | P138: 55 | R138: 1 | S138: 60 | T138: 59 | W138: -27 | X138: 28 | Y138: 26 | Z138: 9 | AA138: 1 | AC138: 27.5 | AD138: 0 | AE138: 1 | AF138: 9.5 | AG138: 13.5
A139: 2011-08-14 | B139: 1 | C139: 46 | D139: 72 | F139: -1 | G139: 73 | H139: 46 | K139: 72 | L139: 46 | O139: 64 | P139: 55 | R139: 1 | S139: 61 | T139: 59 | W139: -26 | X139: 27 | Y139: 26 | Z139: 9 | AA139: 2 | AC139: 26.5 | AD139: 0 | AE139: 0.5 | AF139: 9 | AG139: 12.5
A140: 2011-08-15 | B140: 1 | C140: 47 | D140: 72 | G140: 73 | H140: 46 | J140: 1 | K140: 73 | L140: 46 | O140: 64 | P140: 55 | R140: -1 | S140: 61 | T140: 60 | W140: -25 | X140: 27 | Y140: 27 | Z140: 9 | AA140: 1 | AC140: 26 | AD140: 0 | AE140: 0 | AF140: 9 | AG140: 13
A141: 2011-08-16 | B141: -1 | C141: 47 | D141: 73 | F141: 0 | G141: 74 | H141: 47 | J141: 1 | K141: 74 | L141: 46 | N141: 0 | O141: 65 | P141: 56 | R141: 1 | S141: 62 | T141: 60 | W141: -26 | X141: 27 | Y141: 28 | Z141: 9 | AA141: 2 | AC141: 27 | AD141: 0.5 | AE141: 0 | AF141: 9.5 | AG141: 13
A142: 2011-08-17 | B142: -1 | C142: 47 | D142: 74 | F142: -1 | G142: 74 | H142: 48 | J142: -1 | K142: 74 | L142: 47 | N142: 1 | O142: 66 | P142: 56 | R142: 1 | S142: =S141+IF(R142>0,R142,0) -> 63 | T142: =T141-IF(R142<0,R142,0) -> 60 | W142: -27 | X142: 26 | Y142: 27 | Z142: 10 | AA142: 3 | AC142: 27 | AD142: 0.5 | AE142: 0 | AF142: 8.5 | AG142: 12
A143: 2011-08-18 | C143: 47 | D143: 74 | F143: 1 | G143: 75 | H143: 48 | J143: 1 | K143: 75 | L143: 47 | O143: 66 | P143: 56 | R143: 1 | S143: 64 | T143: 60 | W143: -27 | X143: 27 | Y143: 28 | Z143: 10 | AA143: 4 | AC143: 27.5 | AD143: 0.5 | AE143: 0 | AF143: 9 | AG143: 12
A144: 2011-08-19 | B144: -1 | C144: 47 | D144: 75 | F144: 1 | G144: 76 | H144: 48 | J144: 1 | K144: 76 | L144: 47 | N144: 1 | O144: 67 | P144: 56 | R144: -1 | S144: 64 | T144: 61 | W144: -28 | X144: 28 | Y144: 29 | Z144: 11 | AA144: 3 | AC144: 28.5 | AD144: 0.5 | AE144: 0 | AF144: 9 | AG144: 13
A145: 2011-08-20 | B145: -1 | C145: 47 | D145: 76 | F145: -1 | G145: 76 | H145: 49 | J145: -1 | K145: 76 | L145: 48 | N145: 1 | O145: 68 | P145: 56 | R145: -1 | S145: 64 | T145: 62 | W145: -29 | X145: 27 | Y145: 28 | Z145: 12 | AA145: 2 | AC145: 28.5 | AD145: 0.5 | AE145: 0 | AF145: 8 | AG145: 13
A146: 2011-08-21 | B146: -1 | C146: 47 | D146: 77 | F146: 1 | G146: 77 | H146: 49 | J146: 1 | K146: 77 | L146: 48 | N146: 1 | O146: 69 | P146: 56 | R146: 1 | S146: 65 | T146: 62 | W146: -30 | X146: 28 | Y146: 29 | Z146: 13 | AA146: 3 | AC146: 29.5 | AD146: 0.5 | AE146: 0 | AF146: 8 | AG146: 13
A147: 2011-08-22 | B147: 1 | C147: 48 | D147: 77 | F147: -1 | G147: 77 | H147: 50 | K147: 77 | L147: 48 | N147: -1 | O147: =O146+IF(N147>0,N147,0) -> 69 | P147: =P146-IF(N147<0,N147,0) -> 57 | S147: =S146+IF(R147>0,R147,0) -> 65 | T147: =T146-IF(R147<0,R147,0) -> 62 | W147: -29 | X147: 27 | Y147: 29 | Z147: 12 | AA147: 3 | AC147: 29 | AD147: 1 | AE147: 0 | AF147: 8.5 | AG147: 13
A148: 2011-08-23 | B148: 1 | C148: 49 | D148: 77 | F148: 1 | G148: 78 | H148: 50 | J148: -1 | K148: 77 | L148: 49 | N148: -1 | O148: 69 | P148: 58 | R148: -1 | S148: 65 | T148: 63 | W148: -28 | X148: 28 | Y148: 28 | Z148: 11 | AA148: 2 | AC148: 28 | AD148: 0 | AE148: 0 | AF148: 8.5 | AG148: 13
A149: 2011-08-24 | B149: 1 | C149: 50 | D149: 77 | F149: 1 | G149: =G148+IF(F149>0,F149,0) -> 79 | H149: =H148-IF(F149<0,F149,0) -> 50 | J149: -1 | K149: 77 | L149: 50 | N149: 1 | O149: 70 | P149: 58 | R149: 1 | S149: 66 | T149: 63 | W149: -27 | X149: 29 | Y149: 27 | Z149: 12 | AA149: 3 | AC149: 28 | AD149: 0 | AE149: 1 | AF149: 8.5 | AG149: 13
A150: 2011-08-25 | B150: 1 | C150: 51 | D150: 77 | F150: 1 | G150: 80 | H150: 50 | J150: 1 | K150: 78 | L150: 50 | N150: -1 | O150: 70 | P150: 59 | R150: -1 | S150: 66 | T150: 64 | W150: -26 | X150: 30 | Y150: 28 | Z150: 11 | AA150: 2 | AC150: 28 | AD150: 0 | AE150: 1 | AF150: 9.5 | AG150: 14
A151: 2011-08-26 | B151: 1 | C151: 52 | D151: 77 | F151: -1 | G151: 80 | H151: 51 | J151: -1 | K151: 78 | L151: 51 | N151: 1 | O151: 71 | P151: 59 | R151: -1 | S151: 66 | T151: 65 | W151: -25 | X151: 29 | Y151: 27 | Z151: 12 | AA151: 1 | AC151: 27 | AD151: 0 | AE151: 1 | AF151: 8.5 | AG151: 14
A152: 2011-08-27 | C152: 52 | D152: 77 | F152: 2 | G152: 82 | H152: 51 | K152: 78 | L152: 51 | N152: 1 | O152: 72 | P152: 59 | R152: -1 | S152: 66 | T152: 66 | W152: -25 | X152: 31 | Y152: 27 | Z152: 13 | AA152: 0 | AC152: 28 | AD152: 0 | AE152: 2 | AF152: 9 | AG152: 15.5
A153: 2011-08-28 | B153: 0 | C153: 53 | D153: 78 | G153: 82 | H153: 51 | J153: 0 | K153: 79 | L153: 52 | N153: 1 | O153: 73 | P153: 59 | R153: -1 | S153: 66 | T153: 67 | W153: -25 | X153: 31 | Y153: 27 | Z153: 14 | AA153: -1 | AC153: 28 | AD153: 0 | AE153: 2 | AF153: 8.5 | AG153: 16
A154: 2011-08-29 | B154: -1 | C154: 53 | D154: 79 | G154: 82 | H154: 51 | J154: 1 | K154: 80 | L154: 52 | N154: -1 | O154: 73 | P154: 60 | R154: 1 | S154: 67 | T154: 67 | W154: -26 | X154: 31 | Y154: 28 | Z154: 13 | AA154: 0 | AC154: 28.5 | AD154: 0 | AE154: 1.5 | AF154: 9 | AG154: 15.5
A155: 2011-08-30 | B155: 1 | C155: =C154+IF(B155>0,B155,0) -> 54 | D155: =D154-IF(B155<0,B155,0) -> 79 | F155: -1 | G155: 82 | H155: 52 | J155: 1 | K155: 81 | L155: 52 | N155: -1 | O155: 73 | P155: 61 | R155: -1 | S155: 67 | T155: 68 | W155: -25 | X155: 30 | Y155: 29 | Z155: 12 | AA155: -1 | AC155: 27.5 | AD155: 0 | AE155: 0.5 | AF155: 9 | AG155: 15.5
A156: 2011-08-31 | B156: -1 | C156: 54 | D156: 80 | F156: 1 | G156: 83 | H156: 52 | J156: -1 | K156: 81 | L156: 53 | N156: 1 | O156: 74 | P156: 61 | R156: 1 | S156: 68 | T156: 68 | W156: -26 | X156: 31 | Y156: 28 | Z156: 13 | AA156: 0 | AC156: 28.5 | AD156: 0 | AE156: 1.5 | AF156: 9 | AG156: 15.5
A157: 2011-09-01 | B157: -1 | C157: 54 | D157: 81 | F157: -1 | G157: =G156+IF(F157>0,F157,0) -> 83 | H157: =H156-IF(F157<0,F157,0) -> 53 | J157: 1 | K157: 82 | L157: 53 | N157: -1 | O157: 74 | P157: 62 | R157: 1 | S157: 69 | T157: 68 | W157: -27 | X157: 30 | Y157: 29 | Z157: 12 | AA157: 1 | AC157: 28.5 | AD157: 0 | AE157: 0.5 | AF157: 9 | AG157: 14.5
A158: 2011-09-02 | B158: 1 | C158: 55 | D158: 81 | F158: -1 | G158: 83 | H158: 54 | J158: 1 | K158: 83 | L158: 53 | N158: -1 | O158: 74 | P158: 63 | R158: -1 | S158: 69 | T158: 69 | W158: -26 | X158: 29 | Y158: 30 | Z158: 11 | AA158: 0 | AC158: 28 | AD158: 0.5 | AE158: 0 | AF158: 9.5 | AG158: 15
A159: 2011-09-03 | B159: -1 | C159: 55 | D159: 82 | F159: 1 | G159: 84 | H159: 54 | J159: 1 | K159: 84 | L159: 53 | N159: 1 | O159: 75 | P159: 63 | R159: -1 | S159: 69 | T159: 70 | W159: -27 | X159: 30 | Y159: 31 | Z159: 12 | AA159: -1 | AC159: 29 | AD159: 0.5 | AE159: 0 | AF159: 9.5 | AG159: 16
A160: 2011-09-04 | B160: -1 | C160: 55 | D160: 83 | F160: -1 | G160: 84 | H160: 55 | J160: 1 | K160: 85 | L160: 53 | N160: 1 | O160: 76 | P160: 63 | R160: -1 | S160: 69 | T160: 71 | W160: -28 | X160: 29 | Y160: 32 | Z160: 13 | AA160: -2 | AC160: 30 | AD160: 1.5 | AE160: 0 | AF160: 9.5 | AG160: 17
A161: 2011-09-05 | B161: -1 | C161: 55 | D161: 84 | F161: -1 | G161: 84 | H161: 56 | J161: 1 | K161: 86 | L161: 53 | N161: 1 | O161: 77 | P161: 63 | R161: 1 | S161: 70 | T161: 71 | W161: -29 | X161: 28 | Y161: 33 | Z161: 14 | AA161: -1 | AC161: 31 | AD161: 2.5 | AE161: 0 | AF161: 9.5 | AG161: 17
A162: 2011-09-06 | B162: -1 | C162: 55 | D162: 85 | F162: 1 | G162: 85 | H162: 56 | J162: 1 | K162: 87 | L162: 53 | N162: -1 | O162: 77 | P162: 64 | R162: -1 | S162: 70 | T162: 72 | W162: -30 | X162: 29 | Y162: 34 | Z162: 13 | AA162: -2 | AC162: 32 | AD162: 2.5 | AE162: 0 | AF162: 10.5 | AG162: 18
A163: 2011-09-07 | B163: 1 | C163: 56 | D163: 85 | F163: -1 | G163: 85 | H163: 57 | J163: -1 | K163: 87 | L163: 54 | N163: 1 | O163: 78 | P163: 64 | R163: 1 | S163: 71 | T163: 72 | W163: =C163-D163 -> -29 | X163: =G163-H163 -> 28 | Y163: =K163-L163 -> 33 | Z163: =O163-P163 -> 14 | AA163: =S163-T163 -> -1 | AC163: =(MAX($W163:$AA163)-W163)/2 -> 31 | AD163: =(MAX($W163:$AA163)-X163)/2 -> 2.5 | AE163: =(MAX($W163:$AA163)-Y163)/2 -> 0 | AF163: =(MAX($W163:$AA163)-Z163)/2 -> 9.5 | AG163: =(MAX($W163:$AA163)-AA163)/2 -> 17
A164: 2011-09-08 | B164: 1 | C164: 57 | D164: 85 | F164: -1 | G164: 85 | H164: 58 | J164: -1 | K164: 87 | L164: 55 | O164: 78 | P164: 64 | R164: 1 | S164: 72 | T164: 72 | W164: -28 | X164: 27 | Y164: 32 | Z164: 14 | AA164: 0 | AC164: 30 | AD164: 2.5 | AE164: 0 | AF164: 9 | AG164: 16
A165: 2011-09-09 | B165: 1 | C165: 58 | D165: 85 | F165: -1 | G165: 85 | H165: 59 | J165: -1 | K165: =K164+IF(J165>0,J165,0) -> 87 | L165: =L164-IF(J165<0,J165,0) -> 56 | N165: 1 | O165: 79 | P165: 64 | R165: -1 | S165: =S164+IF(R165>0,R165,0) -> 72 | T165: =T164-IF(R165<0,R165,0) -> 73 | W165: -27 | X165: 26 | Y165: 31 | Z165: 15 | AA165: -1 | AC165: 29 | AD165: 2.5 | AE165: 0 | AF165: 8 | AG165: 16
A166: 2011-09-10 | B166: -1 | C166: =C165+IF(B166>0,B166,0) -> 58 | D166: =D165-IF(B166<0,B166,0) -> 86 | F166: -1 | G166: 85 | H166: 60 | J166: -1 | K166: 87 | L166: 57 | N166: 1 | O166: 80 | P166: 64 | R166: 1 | S166: 73 | T166: 73 | W166: -28 | X166: 25 | Y166: 30 | Z166: 16 | AA166: 0 | AC166: 29 | AD166: 2.5 | AE166: 0 | AF166: 7 | AG166: 15
A167: 2011-09-11 | B167: -1 | C167: 58 | D167: 87 | F167: -1 | G167: =G166+IF(F167>0,F167,0) -> 85 | H167: =H166-IF(F167<0,F167,0) -> 61 | J167: 1 | K167: 88 | L167: 57 | N167: 1 | O167: =O166+IF(N167>0,N167,0) -> 81 | P167: =P166-IF(N167<0,N167,0) -> 64 | R167: 1 | S167: 74 | T167: 73 | W167: -29 | X167: 24 | Y167: 31 | Z167: 17 | AA167: 1 | AC167: 30 | AD167: 3.5 | AE167: 0 | AF167: 7 | AG167: 15
A168: 2011-09-12 | B168: -1 | C168: 58 | D168: 88 | G168: 85 | H168: 61 | J168: 1 | K168: 89 | L168: 57 | N168: 1 | O168: 82 | P168: 64 | S168: 74 | T168: 73 | W168: -30 | X168: 24 | Y168: 32 | Z168: 18 | AA168: 1 | AC168: 31 | AD168: 4 | AE168: 0 | AF168: 7 | AG168: 15.5
A169: 2011-09-13 | B169: 1 | C169: 59 | D169: 88 | F169: 1 | G169: 86 | H169: 61 | J169: 1 | K169: 90 | L169: 57 | N169: -1 | O169: 82 | P169: 65 | R169: -1 | S169: 74 | T169: 74 | W169: -29 | X169: 25 | Y169: 33 | Z169: 17 | AA169: 0 | AC169: 31 | AD169: 4 | AE169: 0 | AF169: 8 | AG169: 16.5
A170: 2011-09-14 | B170: 1 | C170: 60 | D170: 88 | F170: -1 | G170: 86 | H170: 62 | J170: -1 | K170: 90 | L170: 58 | N170: -1 | O170: 82 | P170: 66 | R170: 1 | S170: 75 | T170: 74 | W170: -28 | X170: 24 | Y170: 32 | Z170: 16 | AA170: 1 | AC170: 30 | AD170: 4 | AE170: 0 | AF170: 8 | AG170: 15.5
A171: 2011-09-15 | C171: 60 | D171: 88 | F171: -1 | G171: 86 | H171: 63 | K171: 90 | L171: 58 | N171: 1 | O171: 83 | P171: 66 | S171: 75 | T171: 74 | W171: -28 | X171: 23 | Y171: 32 | Z171: 17 | AA171: 1 | AC171: 30 | AD171: 4.5 | AE171: 0 | AF171: 7.5 | AG171: 15.5
A172: 2011-09-16 | B172: 1 | C172: 61 | D172: 88 | F172: 1 | G172: 87 | H172: 63 | J172: -1 | K172: 90 | L172: 59 | N172: -1 | O172: 83 | P172: 67 | R172: 1 | S172: 76 | T172: 74 | W172: -27 | X172: 24 | Y172: 31 | Z172: 16 | AA172: 2 | AC172: 29 | AD172: 3.5 | AE172: 0 | AF172: 7.5 | AG172: 14.5
A173: 2011-09-17 | B173: 1 | C173: 62 | D173: 88 | F173: -1 | G173: 87 | H173: 64 | J173: 1 | K173: 91 | L173: 59 | N173: 1 | O173: 84 | P173: 67 | R173: -1 | S173: 76 | T173: 75 | W173: -26 | X173: 23 | Y173: 32 | Z173: 17 | AA173: 1 | AC173: 29 | AD173: 4.5 | AE173: 0 | AF173: 7.5 | AG173: 15.5
A174: 2011-09-18 | B174: -1 | C174: 62 | D174: 89 | F174: -1 | G174: 87 | H174: 65 | J174: -1 | K174: 91 | L174: 60 | N174: 1 | O174: 85 | P174: 67 | R174: 1 | S174: 77 | T174: 75 | W174: -27 | X174: 22 | Y174: 31 | Z174: 18 | AA174: 2 | AC174: 29 | AD174: 4.5 | AE174: 0 | AF174: 6.5 | AG174: 14.5
A175: 2011-09-19 | B175: 0 | C175: 63 | D175: 90 | F175: 0 | G175: 88 | H175: 66 | J175: 1 | K175: 92 | L175: 60 | O175: 85 | P175: 67 | R175: 1 | S175: 78 | T175: 75 | W175: -27 | X175: 22 | Y175: 32 | Z175: 18 | AA175: 3 | AC175: 29.5 | AD175: 5 | AE175: 0 | AF175: 7 | AG175: 14.5
A176: 2011-09-20 | B176: 1 | C176: =C175+IF(B176>0,B176,0) -> 64 | D176: =D175-IF(B176<0,B176,0) -> 90 | F176: -1 | G176: 88 | H176: 67 | J176: 1 | K176: 93 | L176: 60 | N176: -1 | O176: 85 | P176: 68 | R176: -1 | S176: 78 | T176: 76 | W176: -26 | X176: 21 | Y176: 33 | Z176: 17 | AA176: 2 | AC176: 29.5 | AD176: 6 | AE176: 0 | AF176: 8 | AG176: 15.5
A177: 2011-09-21 | B177: 1 | C177: 65 | D177: 90 | F177: -1 | G177: 88 | H177: 68 | J177: 2 | K177: 95 | L177: 60 | N177: -2 | O177: 85 | P177: 70 | R177: -1 | S177: 78 | T177: 77 | W177: -25 | X177: 20 | Y177: 35 | Z177: 15 | AA177: 1 | AC177: 30 | AD177: 7.5 | AE177: 0 | AF177: 10 | AG177: 17
A178: 2011-09-22 | B178: 1 | C178: 66 | D178: 90 | G178: 88 | H178: 68 | J178: -1 | K178: 95 | L178: 61 | N178: 1 | O178: 86 | P178: 70 | R178: 1 | S178: 79 | T178: 77 | W178: -24 | X178: 20 | Y178: 34 | Z178: 16 | AA178: 2 | AC178: 29 | AD178: 7 | AE178: 0 | AF178: 9 | AG178: 16
A179: 2011-09-23 | B179: -1 | C179: 66 | D179: 91 | G179: 88 | H179: 68 | K179: 95 | L179: 61 | N179: -1 | O179: 86 | P179: 71 | R179: 1 | S179: 80 | T179: 77 | W179: -25 | X179: 20 | Y179: 34 | Z179: 15 | AA179: 3 | AC179: 29.5 | AD179: 7 | AE179: 0 | AF179: 9.5 | AG179: 15.5
A180: 2011-09-24 | B180: 1 | C180: 67 | D180: 91 | F180: -1 | G180: 88 | H180: 69 | J180: 1 | K180: 96 | L180: 61 | N180: 1 | O180: 87 | P180: 71 | R180: -1 | S180: 80 | T180: 78 | W180: -24 | X180: 19 | Y180: 35 | Z180: 16 | AA180: 2 | AC180: 29.5 | AD180: 8 | AE180: 0 | AF180: 9.5 | AG180: 16.5 | AJ180: Team | AK180: GB | AL180: %
A181: 2011-09-25 | B181: -1 | C181: 67 | D181: 92 | F181: 0 | G181: 89 | H181: 70 | J181: 0 | K181: 97 | L181: 62 | N181: 1 | O181: 88 | P181: 71 | R181: -1 | S181: 80 | T181: 79 | W181: -25 | X181: 19 | Y181: 35 | Z181: 17 | AA181: 1 | AC181: 30 | AD181: 8 | AE181: 0 | AF181: 9 | AG181: 17 | AJ181: =AE$1 -> NYY | AK181: =AE$185 -> 0 | AL181: =AE$187 -> 0.5987654321
A182: 2011-09-26 | B182: 1 | C182: 68 | D182: 92 | F182: -1 | G182: 89 | H182: 71 | J182: -1 | K182: 97 | L182: 63 | N182: 1 | O182: 89 | P182: 71 | R182: -1 | S182: 80 | T182: 80 | W182: -24 | X182: 18 | Y182: 34 | Z182: 18 | AA182: 0 | AC182: 29 | AD182: 8 | AE182: 0 | AF182: 8 | AG182: 17 | AJ182: =AF$1 -> TBR | AK182: =AF$185 -> 6 | AL182: =AF$187 -> 0.5617283951
A183: 2011-09-27 | B183: -1 | C183: 68 | D183: 93 | F183: 1 | G183: 90 | H183: 71 | J183: -1 | K183: 97 | L183: 64 | N183: 1 | O183: 90 | P183: 71 | R183: -1 | S183: 80 | T183: 81 | W183: -25 | X183: 19 | Y183: 33 | Z183: 19 | AA183: -1 | AC183: 29 | AD183: 7 | AE183: 0 | AF183: 7 | AG183: 17 | AJ183: =AD$1 -> BOS | AK183: =AD$185 -> 7 | AL183: =AD$187 -> 0.5555555556
A184: 2011-09-28 | B184: 1 | C184: 69 | D184: 93 | F184: -1 | G184: 90 | H184: 72 | J184: -1 | K184: 97 | L184: 65 | N184: 1 | O184: 91 | P184: 71 | R184: 1 | S184: 81 | T184: 81 | W184: -24 | X184: 18 | Y184: 32 | Z184: 20 | AA184: 0 | AC184: 28 | AD184: 7 | AE184: 0 | AF184: 6 | AG184: 16 | AJ184: =AG$1 -> TOR | AK184: =AG$185 -> 16 | AL184: =AG$187 -> 0.5
A185: 2011-09-29 | C185: 69 | D185: 93 | G185: 90 | H185: 72 | K185: 97 | L185: 65 | O185: 91 | P185: 71 | S185: 81 | T185: 81 | W185: -24 | X185: 18 | Y185: 32 | Z185: 20 | AA185: 0 | AC185: 28 | AD185: 7 | AE185: 0 | AF185: 6 | AG185: 16 | AJ185: =AC$1 -> BAL | AK185: =AC$185 -> 28 | AL185: =AC$187 -> 0.4259259259
AC187: =C185/(C185+D185) -> 0.4259259259 | AD187: =G185/(G185+H185) -> 0.5555555556 | AE187: =K185/(K185+L185) -> 0.5987654321 | AF187: =O185/(O185+P185) -> 0.5617283951 | AG187: =S185/(S185+T185) -> 0.5
